bitfinex/quotes_BTCUSD_20251113
["timestamp","ask_amount","ask_price","bid_price","bid_amount"]
[1763059020224,2.46764988,98667.0,98666.0,62.83959635]
[1763059020351,2.46764988,98667.0,98666.0,62.14268534]
[1763059020568,2.96264988,98667.0,98666.0,62.11219347]
[1763059020790,2.96264988,98667.0,98666.0,62.04102297]
[1763059020948,2.96964988,98667.0,98666.0,61.34069097]
[1763059021154,2.96264988,98667.0,98666.0,61.3101991]
[1763059021380,2.96264988,98667.0,98666.0,61.27970723]
[1763059021556,2.96964988,98667.0,98666.0,61.24921536]
[1763059021763,2.96964988,98667.0,98666.0,60.58226352]
[1763059021962,2.96964988,98667.0,98666.0,60.46524103]
[1763059022181,2.96964988,98667.0,98666.0,60.3321948]
[1763059022539,2.96964988,98667.0,98666.0,60.18989887]
[1763059022745,2.96264988,98667.0,98666.0,60.07815264]
[1763059022931,2.97064988,98667.0,98666.0,59.93991935]
[1763059023065,2.98656929,98667.0,98666.0,59.85866499]
[1763059023263,2.98656929,98667.0,98666.0,59.77741063]
[1763059023466,2.98656929,98667.0,98666.0,54.05881049]
[1763059023693,2.97856929,98667.0,98666.0,53.98768578]
[1763059023897,2.97856929,98667.0,98666.0,53.95718825]
[1763059024100,2.98556929,98667.0,98666.0,53.32384774]
[1763059024302,2.97856929,98667.0,98666.0,53.25272303]
[1763059024503,2.97856929,98667.0,98666.0,52.63289555]
[1763059024703,3.09236929,98667.0,98666.0,52.56177084]
[1763059024910,3.09236929,98667.0,98666.0,52.51103331]
[1763059025110,2.94215055,98667.0,98666.0,52.45803331]
[1763059025307,2.94215055,98667.0,98666.0,52.41740613]
[1763059025542,2.94215055,98667.0,98666.0,51.76857449]
[1763059025710,2.94215055,98667.0,98666.0,45.64014893]
[1763059025711,1.1680288,98667.0,98666.0,45.64014893]
[1763059025930,2.24210939,98667.0,98666.0,40.65491963]
[1763059026132,2.28822233,98667.0,98666.0,40.59390619]
[1763059026338,2.28822233,98667.0,98666.0,40.56339947]
[1763059026339,2.17644988,98667.0,98666.0,40.56339947]
[1763059026537,2.01823114,98667.0,98666.0,40.04503792]
[1763059026756,2.02723114,98667.0,98666.0,38.34943719]
[1763059026964,2.12361426,98667.0,98666.0,37.09268753]
[1763059027161,2.11258233,98667.0,98666.0,35.84240298]
[1763059027368,2.22928988,98667.0,98666.0,32.95747705]
[1763059027582,2.23828988,98667.0,98666.0,30.92702706]
[1763059027789,1.19922233,98667.0,98666.0,22.82696098]
[1763059028000,3.14828988,98667.0,98666.0,21.57668266]
[1763059028191,3.14828988,98667.0,98666.0,20.02206248]
[1763059028398,3.14828988,98667.0,98666.0,19.21774457]
[1763059028610,3.14828988,98667.0,98666.0,19.13723996]
[1763059028611,3.13838233,98667.0,98666.0,19.13723996]
[1763059028814,3.13838233,98667.0,98666.0,19.10673324]
[1763059029062,3.03158233,98667.0,98666.0,19.07622652]
[1763059029271,3.04750257,98667.0,98666.0,19.02980524]
[1763059029622,3.04750257,98667.0,98666.0,18.52971598]
[1763059029803,2.9215404,98667.0,98666.0,17.84100525]
[1763059030108,2.91656795,98667.0,98666.0,17.33899204]
[1763059030326,2.91656795,98667.0,98666.0,17.22931016]
[1763059030464,2.91656795,98667.0,98666.0,16.57723032]
[1763059030688,3.16106795,98667.0,98666.0,16.34169488]
[1763059030897,1.62106795,98667.0,98666.0,13.4407915]
[1763059031111,1.62106795,98667.0,98666.0,13.42159833]
[1763059031312,1.22634921,98667.0,98666.0,13.42159833]
[1763059031509,1.22634921,98667.0,98666.0,13.4194003]
[1763059031897,1.00292024,98667.0,98666.0,13.4194003]
[1763059032151,1.00292024,98667.0,98666.0,12.97622687]
[1763059032298,0.99392024,98667.0,98666.0,12.97622687]
[1763059032702,1.32592024,98667.0,98666.0,12.97622687]
[1763059032943,1.32592024,98667.0,98666.0,12.60905344]
[1763059033161,1.32592024,98667.0,98666.0,12.20251893]
[1763059033395,1.36933898,98667.0,98666.0,10.78776094]
[1763059033620,1.36033898,98667.0,98666.0,9.1616229]
[1763059033819,1.36733898,98667.0,98666.0,8.34855388]
[1763059034022,1.40262843,98667.0,98666.0,6.55039687]
[1763059034232,1.39562843,98667.0,98666.0,5.34701893]
[1763059034557,1.41974168,98667.0,98666.0,2.85434638]
[1763059034789,1.38445223,98667.0,98666.0,1.63474285]
[1763059034991,1.38445223,98667.0,98666.0,0.29653427]
[1763059035201,1.36033898,98667.0,98666.0,5e-08]
[1763059035405,1.36033898,98667.0,98628.0,0.03973884]
[1763059035406,2.36944,98629.0,98628.0,0.03973884]
[1763059035614,2.38744,98629.0,98628.0,0.03973884]
[1763059036654,2.38757958,98629.0,98628.0,0.03973884]
[1763059037096,2.39257958,98629.0,98628.0,0.03973884]
[1763059039014,2.06957958,98629.0,98628.0,0.03973884]
[1763059039634,2.39257958,98629.0,98628.0,0.03973884]
[1763059039839,2.39257958,98629.0,98628.0,0.02673884]
[1763059039840,0.06957958,98629.0,98628.0,0.02673884]
[1763059040748,0.06057958,98629.0,98628.0,0.02673884]
[1763059041592,0.38357958,98629.0,98628.0,0.02673884]
[1763059041764,0.40201535,98629.0,98628.0,0.02673884]
[1763059042024,0.39701535,98629.0,98628.0,0.02673884]
[1763059042429,0.40001535,98629.0,98628.0,0.02673884]
[1763059042580,0.41293342,98629.0,98628.0,0.02673884]
[1763059042982,0.41493342,98629.0,98628.0,0.02673884]
[1763059043188,0.41293342,98629.0,98628.0,0.02673884]
[1763059043449,0.41493342,98629.0,98628.0,0.02673884]
[1763059043622,0.43617235,98629.0,98628.0,0.02673884]
[1763059043834,0.03390735,98629.0,98628.0,0.09721318]
[1763059044182,0.01266842,98629.0,98628.0,0.07015758]
[1763059045148,0.01566842,98629.0,98628.0,0.07015758]
[1763059045388,0.01566842,98629.0,98628.0,0.02673884]
[1763059045389,0.01266842,98629.0,98628.0,0.02673884]
[1763059046909,0.01266842,98629.0,98628.0,0.16184758]
[1763059047136,0.01266842,98629.0,98628.0,0.07015758]
[1763059047554,0.5196245,98630.0,98629.0,0.04341874]
[1763059047753,0.4695193,98630.0,98629.0,0.13557456]
[1763059047959,0.4390386,98630.0,98629.0,0.06757456]
[1763059048165,0.4390386,98630.0,98629.0,0.00046582]
[1763059048391,0.4695189,98630.0,98629.0,0.00835674]
[1763059048599,0.01,98640.0,98629.0,0.00835674]
[1763059048600,0.01,98640.0,98630.0,0.01999998]
[1763059048809,0.0196245,98660.0,98650.0,0.00999999]
[1763059049006,0.01590545,98676.0,98670.0,0.00999999]
[1763059049447,0.01000001,98667.0,98666.0,0.53653336]
[1763059049668,0.01000001,98667.0,98659.0,0.25239844]
[1763059049669,0.01000001,98667.0,98659.0,0.04868]
[1763059049877,0.00021791,98679.0,98661.0,0.36641874]
[1763059050085,0.00021791,98679.0,98670.0,0.05341873]
[1763059050327,0.51914238,98690.0,98670.0,0.06355352]
[1763059050551,0.4,98730.0,98670.0,0.06355352]
[1763059050552,0.01,98700.0,98681.0,0.36641874]
[1763059050787,0.01013992,98700.0,98691.0,0.04341874]
[1763059051011,0.01013992,98700.0,98699.0,0.09011874]
[1763059051491,0.00068718,98700.0,98672.0,0.0467]
[1763059051708,0.02404,98699.0,98672.0,0.0467]
[1763059051921,0.02404,98699.0,98670.0,0.53653336]
[1763059051922,0.2,98680.0,98670.0,0.53653336]
[1763059052146,0.01903453,98660.0,98652.0,0.04662954]
[1763059052381,0.2,98680.0,98652.0,0.04662954]
[1763059052382,0.40999999,98680.0,98653.0,0.01372495]
[1763059052635,0.01,98670.0,98653.0,0.10434495]
[1763059052855,0.51903453,98670.0,98653.0,0.09062]
[1763059053063,0.01903453,98670.0,98653.0,0.09062]
[1763059053269,0.01903453,98670.0,98653.0,0.00046582]
[1763059053270,0.40999999,98660.0,98653.0,0.00046582]
[1763059053910,0.40999999,98660.0,98653.0,0.00039841]
[1763059054337,0.04573,98654.0,98653.0,0.00039841]
[1763059054944,0.323,98659.0,98653.0,0.00039841]
[1763059055152,0.323,98659.0,98640.0,0.53553171]
[1763059055153,0.2,98640.0,98630.0,0.03109841]
[1763059055353,0.238643,98640.0,98630.0,0.56656235]
[1763059055555,0.038643,98640.0,98630.0,0.56656235]
[1763059055766,0.238643,98640.0,98630.0,0.03103064]
[1763059055981,0.238643,98640.0,98628.0,0.02673884]
[1763059055982,0.40046609,98640.0,98628.0,0.02673884]
[1763059056182,0.01,98630.0,98628.0,0.02673884]
[1763059056386,0.40046609,98640.0,98630.0,0.001]
[1763059056596,0.238643,98640.0,98630.0,0.53653171]
[1763059056804,0.20046609,98640.0,98631.0,0.0467]
[1763059057018,0.21046609,98640.0,98631.0,0.0467]
[1763059057238,0.21046609,98640.0,98628.0,0.02673884]
[1763059057239,0.323,98639.0,98628.0,0.02673884]
[1763059057453,0.01825766,98638.0,98628.0,0.02673884]
[1763059057675,0.34125766,98637.0,98628.0,0.02673884]
[1763059057901,0.01825766,98636.0,98628.0,0.02673884]
[1763059058119,0.323,98635.0,98630.0,0.001]
[1763059058360,0.11207766,98636.0,98620.0,0.04461629]
[1763059058361,0.34569,98629.0,98620.0,0.04461629]
[1763059058569,0.34569,98629.0,98600.0,0.0039]
[1763059058570,0.323,98619.0,98600.0,0.0039]
[1763059058807,0.323,98616.0,98600.0,0.0039]
[1763059059028,0.01825766,98615.0,98600.0,0.0039]
[1763059059244,0.01825766,98614.0,98600.0,0.0039]
[1763059059446,0.01825766,98613.0,98600.0,0.0039]
[1763059059657,0.01825766,98612.0,98600.0,0.0039]
[1763059059861,0.01825766,98611.0,98600.0,0.0039]
[1763059061843,0.02025766,98611.0,98600.0,0.0039]
[1763059062064,0.01825766,98611.0,98600.0,0.0039]
[1763059062290,0.01925766,98611.0,98600.0,0.0039]
[1763059062496,0.01825766,98611.0,98600.0,0.0039]
[1763059062914,0.01925766,98611.0,98600.0,0.0039]
[1763059064214,0.01825766,98611.0,98600.0,0.0039]
[1763059064417,0.02025766,98611.0,98600.0,0.0039]
[1763059064638,0.02025766,98611.0,98610.0,0.00041147]
[1763059064853,0.01825766,98611.0,98610.0,0.00041147]
[1763059065079,0.02025766,98611.0,98610.0,0.00041147]
[1763059065538,0.323,98609.0,98600.0,0.0039]
[1763059065746,0.323,98605.0,98600.0,0.0039]
[1763059065905,0.323,98603.0,98600.0,0.0039]
[1763059066110,0.323,98603.0,98560.0,0.53593171]
[1763059066111,0.323,98599.0,98587.0,0.0435095]
[1763059066302,0.02404,98588.0,98587.0,0.0435095]
[1763059066652,0.04276346,98588.0,98587.0,0.0435095]
[1763059067616,0.04276346,98588.0,98587.0,0.0165095]
[1763059068033,0.01872346,98588.0,98587.0,0.0165095]
[1763059068616,0.01872346,98588.0,98578.0,0.53553171]
[1763059068617,0.0004658,98588.0,98578.0,0.56580515]
[1763059068863,0.0004658,98588.0,98580.0,0.04341874]
[1763059068864,0.0014658,98588.0,98580.0,0.04341874]
[1763059069068,0.5,98600.0,98580.0,0.04341874]
[1763059069272,0.00027814,98599.0,98591.0,0.04341874]
[1763059069588,0.00027814,98599.0,98593.0,0.04341874]
[1763059069995,0.00027814,98599.0,98595.0,0.04341874]
[1763059070198,0.00027814,98599.0,98597.0,0.04341874]
[1763059070415,0.00027814,98599.0,98598.0,0.09011874]
[1763059070639,0.00027814,98599.0,98598.0,0.18073874]
[1763059071061,0.00027814,98599.0,98598.0,0.09011874]
[1763059071298,0.00027814,98599.0,98598.0,0.0467]
[1763059071502,0.00127814,98599.0,98598.0,0.0467]
[1763059071723,0.00027814,98599.0,98598.0,0.0467]
[1763059071933,0.00027814,98599.0,98598.0,0.09011874]
[1763059072155,0.51842052,98600.0,98580.0,0.00013997]
[1763059072363,0.03822256,98590.0,98580.0,0.53567168]
[1763059072573,0.23822256,98590.0,98580.0,0.53567168]
[1763059072774,0.23822256,98590.0,98580.0,0.00013997]
[1763059072775,0.24822255,98590.0,98580.0,0.00013997]
[1763059072989,0.01827077,98589.0,98580.0,0.00013997]
[1763059073190,0.44822255,98590.0,98580.0,0.00013997]
[1763059073191,0.01827077,98588.0,98580.0,0.00013997]
[1763059073397,0.01826794,98587.0,98580.0,0.00013997]
[1763059073604,0.24999999,98590.0,98580.0,0.00013997]
[1763059073802,0.01826616,98589.0,98580.0,0.00013997]
[1763059074013,0.24,98590.0,98580.0,0.00013997]
[1763059074219,0.04999999,98590.0,98580.0,0.53567168]
[1763059074431,0.04,98590.0,98580.0,0.53567168]
[1763059074628,0.02,98590.0,98581.0,0.09062]
[1763059074855,0.02,98590.0,98581.0,0.02762]
[1763059075060,0.02,98590.0,98580.0,0.00013997]
[1763059075061,0.44999999,98590.0,98580.0,0.00013997]
[1763059075265,0.01831,98581.0,98580.0,0.00013997]
[1763059075669,0.01826646,98581.0,98580.0,0.00013997]
[1763059076862,0.323,98589.0,98580.0,0.00013997]
[1763059077063,0.01826166,98588.0,98580.0,0.00013997]
[1763059077270,0.01826166,98587.0,98580.0,0.00013997]
[1763059077494,0.44999999,98590.0,98580.0,0.00013997]
[1763059077495,0.001,98581.0,98580.0,0.00013997]
[1763059077693,0.44,98590.0,98581.0,0.04341874]
[1763059077694,0.02,98590.0,98581.0,0.04341874]
[1763059077908,0.51927814,98600.0,98581.0,0.04341874]
[1763059078120,0.001,98589.0,98583.0,0.04341874]
[1763059078321,0.02,98590.0,98584.0,0.09062]
[1763059078539,0.02,98590.0,98580.0,0.00013997]
[1763059078742,0.04999999,98590.0,98580.0,0.53567168]
[1763059078951,0.44,98590.0,98580.0,0.00013997]
[1763059079265,0.01827055,98589.0,98580.0,0.00013997]
[1763059079469,0.01827055,98588.0,98580.0,0.00013997]
[1763059079665,0.01827055,98587.0,98580.0,0.00013997]
[1763059079886,0.01827055,98586.0,98580.0,0.00013997]
[1763059080085,0.01827055,98585.0,98580.0,0.00013997]
[1763059080260,0.44999999,98590.0,98580.0,0.00013997]
[1763059080261,0.01827055,98584.0,98580.0,0.00013997]
[1763059080462,0.01827055,98583.0,98580.0,0.00013997]
[1763059081302,0.01827055,98582.0,98580.0,0.00013997]
[1763059081622,0.01821276,98581.0,98580.0,0.00013997]
[1763059081862,0.49999914,98600.0,98581.0,0.09388]
[1763059082082,0.02,98590.0,98581.0,0.09388]
[1763059082289,0.69999914,98600.0,98581.0,0.09388]
[1763059082491,0.02,98590.0,98581.0,0.09388]
[1763059082644,0.49999914,98600.0,98581.0,0.09388]
[1763059082806,0.01,98590.0,98581.0,0.09388]
[1763059083004,0.49999914,98600.0,98582.0,0.04341874]
[1763059083253,0.49999914,98600.0,98580.0,0.00013997]
[1763059083254,0.04,98590.0,98580.0,0.09401997]
[1763059083456,0.04,98590.0,98580.0,0.62955168]
[1763059083893,0.49999914,98600.0,98580.0,0.62955168]
[1763059083894,0.49999914,98600.0,98581.0,0.13729874]
[1763059084092,0.49999914,98600.0,98580.0,0.53567168]
[1763059084093,0.49999914,98600.0,98591.0,0.04341874]
[1763059084435,0.69999914,98600.0,98582.0,0.09388]
[1763059084645,0.69999914,98600.0,98580.0,0.53567168]
[1763059084848,0.2,98590.0,98580.0,0.53567168]
[1763059085266,0.2,98590.0,98580.0,0.00013997]
[1763059085267,0.4,98590.0,98580.0,0.00013997]
[1763059085484,0.04796,98581.0,98580.0,0.00013997]
[1763059085700,0.41999998,98590.0,98580.0,0.00013997]
[1763059086125,0.323,98589.0,98580.0,0.00013997]
[1763059086328,0.06363,98588.0,98580.0,0.00013997]
[1763059086535,0.20999999,98580.0,98562.0,0.0004]
[1763059086744,0.2,98580.0,98574.0,0.00243365]
[1763059086966,0.40999999,98580.0,98574.0,0.00243365]
[1763059087187,0.2,98580.0,98574.0,0.00243365]
[1763059087396,0.4,98580.0,98574.0,0.00243365]
[1763059087807,0.40999999,98580.0,98574.0,0.00243365]
[1763059088011,0.20999999,98580.0,98574.0,0.00243365]
[1763059088225,0.40999999,98590.0,98574.0,0.00243365]
[1763059088431,0.4,98600.0,98580.0,0.53553171]
[1763059088636,0.4,98600.0,98580.0,0.59855725]
[1763059088637,0.40999999,98600.0,98580.0,0.59855725]
[1763059088840,0.40999999,98600.0,98575.0,0.09229]
[1763059089017,0.40999999,98600.0,98580.0,0.53553171]
[1763059089173,0.40999999,98600.0,98575.0,0.04329]
[1763059089378,0.20999999,98600.0,98575.0,0.04329]
[1763059089580,0.20999999,98600.0,98581.0,0.04341874]
[1763059089581,0.2,98600.0,98581.0,0.04341874]
[1763059089786,0.2,98620.0,98590.0,0.53553171]
[1763059089983,0.2,98620.0,98582.0,0.00867087]
[1763059089984,0.40999999,98630.0,98600.0,0.53553171]
[1763059090364,0.2,98620.0,98591.0,0.04341874]
[1763059090565,0.2,98620.0,98600.0,0.53553171]
[1763059091236,0.40999999,98630.0,98601.0,0.0789]
[1763059091433,0.2,98640.0,98610.0,0.53553171]
[1763059091590,0.01591535,98637.0,98601.0,0.0789]
[1763059091809,0.01591535,98637.0,98582.0,0.00867087]
[1763059091810,0.01591535,98637.0,98581.0,0.0789]
[1763059091811,0.2,98600.0,98581.0,0.0789]
[1763059092015,0.20999999,98610.0,98581.0,0.04341874]
[1763059092211,0.2,98600.0,98575.0,0.08077]
[1763059092412,0.2,98590.0,98570.0,0.53553171]
[1763059092620,0.2,98590.0,98574.0,0.00243365]
[1763059093331,0.2,98580.0,98574.0,0.00243365]
[1763059093530,0.0184223,98579.0,98574.0,0.00243365]
[1763059093800,0.0184223,98578.0,98574.0,0.00243365]
[1763059094013,0.0184223,98577.0,98574.0,0.00243365]
[1763059094185,0.0184223,98576.0,98574.0,0.00243365]
[1763059094361,0.0184223,98575.0,98574.0,0.00243365]
[1763059095023,0.02476,98576.0,98574.0,0.00243365]
[1763059095225,0.0184223,98575.0,98574.0,0.00243365]
[1763059095841,2.3414223,98575.0,98574.0,0.00243365]
[1763059096457,0.4,98550.0,98544.0,0.05281698]
[1763059096668,0.4,98550.0,98544.0,0.05213698]
[1763059096669,0.04518,98545.0,98544.0,0.05213698]
[1763059096859,0.0636023,98545.0,98544.0,0.04754698]
[1763059097699,0.3956023,98545.0,98544.0,0.04754698]
[1763059098110,2.39555886,98545.0,98544.0,0.04754698]
[1763059098315,0.323,98539.0,98520.0,0.0004]
[1763059098515,0.323,98544.0,98521.0,0.198403]
[1763059098516,0.323,98527.0,98521.0,0.198403]
[1763059098640,0.03951966,98526.0,98521.0,0.198403]
[1763059098844,0.323,98527.0,98521.0,0.198403]
[1763059098845,0.323,98522.0,98521.0,0.198403]
[1763059099064,2.34137886,98522.0,98521.0,0.198403]
[1763059100112,2.01837886,98522.0,98521.0,0.198403]
[1763059100521,2.02137886,98522.0,98521.0,0.198403]
[1763059100800,2.01837886,98522.0,98521.0,0.198403]
[1763059101010,2.53946027,98522.0,98521.0,0.198403]
[1763059101193,2.52137886,98522.0,98521.0,0.198403]
[1763059101437,0.53137886,98522.0,98521.0,0.198403]
[1763059101774,2.03137886,98522.0,98521.0,0.198403]
[1763059102131,2.04731291,98522.0,98521.0,0.198403]
[1763059102324,2.35137886,98522.0,98521.0,0.198403]
[1763059102495,0.02837886,98522.0,98521.0,0.198403]
[1763059102699,0.03137886,98522.0,98521.0,0.198403]
[1763059102910,0.02837886,98522.0,98521.0,0.198403]
[1763059103271,0.03137886,98522.0,98521.0,0.198403]
[1763059103497,0.03137886,98522.0,98500.0,10.216468]
[1763059103498,0.03137886,98522.0,98500.0,10.119823]
[1763059103702,2.0,98507.0,98500.0,7.08862089]
[1763059103911,1.09573201,98510.0,98500.0,7.08862089]
[1763059103912,2.0,98505.0,98500.0,7.08862089]
[1763059104114,2.323,98501.0,98500.0,7.08862089]
[1763059104322,2.36236263,98501.0,98500.0,7.08862089]
[1763059104529,2.34137886,98501.0,98500.0,7.08862089]
[1763059104967,2.35778268,98501.0,98500.0,7.08862089]
[1763059105548,2.34184417,98501.0,98500.0,7.08862089]
[1763059106176,0.34584417,98501.0,98500.0,7.08862089]
[1763059106927,2.34184417,98501.0,98500.0,7.08862089]
[1763059107629,2.34484417,98501.0,98500.0,7.08862089]
[1763059108456,2.34184417,98501.0,98500.0,7.08862089]
[1763059108664,2.34184417,98501.0,98500.0,7.08664856]
[1763059108864,2.34484417,98501.0,98500.0,7.08664856]
[1763059109097,2.34184417,98501.0,98500.0,7.08664856]
[1763059109511,2.34484417,98501.0,98500.0,7.08664856]
[1763059109737,2.34184417,98501.0,98500.0,7.08664856]
[1763059110167,2.34484417,98501.0,98500.0,7.08664856]
[1763059110367,2.34184417,98501.0,98500.0,7.08664856]
[1763059111213,2.34184417,98501.0,98500.0,7.01064856]
[1763059111626,2.35384417,98501.0,98500.0,7.01064856]
[1763059112043,2.35084417,98501.0,98500.0,7.01064856]
[1763059112256,2.35484417,98501.0,98500.0,7.01064856]
[1763059112699,2.34871981,98501.0,98500.0,7.01064856]
[1763059112881,2.85271981,98501.0,98500.0,7.01064856]
[1763059113091,2.89607115,98501.0,98500.0,7.01064856]
[1763059113317,2.89607115,98501.0,98500.0,6.64758856]
[1763059113539,2.88707115,98501.0,98500.0,6.38568856]
[1763059113749,1.41707115,98501.0,98500.0,2.43388856]
[1763059113981,1.41707115,98501.0,98500.0,2.41794668]
[1763059114591,1.41307115,98501.0,98500.0,2.41794668]
[1763059114801,1.15237115,98501.0,98500.0,2.15444668]
[1763059114969,1.12367115,98501.0,98500.0,2.13304668]
[1763059115132,1.07625241,98501.0,98500.0,2.13304668]
[1763059115332,1.09018466,98501.0,98500.0,2.13304668]
[1763059116161,1.08518466,98501.0,98500.0,2.13304668]
[1763059116573,1.08918466,98501.0,98500.0,2.13304668]
[1763059116777,1.08918466,98501.0,98500.0,2.13224668]
[1763059117635,0.76444417,98501.0,98500.0,2.13224668]
[1763059117939,0.26444417,98501.0,98500.0,2.13224668]
[1763059118137,0.26944417,98501.0,98500.0,2.13224668]
[1763059118346,0.26444417,98501.0,98500.0,2.11924668]
[1763059118681,0.59244417,98501.0,98500.0,2.11924668]
[1763059119060,0.26944417,98501.0,98500.0,2.11924668]
[1763059119475,0.26444417,98501.0,98500.0,2.11924668]
[1763059120990,0.61238547,98501.0,98500.0,2.11924668]
[1763059121203,0.58744417,98501.0,98500.0,2.11924668]
[1763059121574,0.59244417,98501.0,98500.0,2.11924668]
[1763059122120,0.58744417,98501.0,98500.0,2.11924668]
[1763059122294,0.59244417,98501.0,98500.0,2.11924668]
[1763059122455,0.58744417,98501.0,98500.0,2.11924668]
[1763059122853,0.59144417,98501.0,98500.0,2.11924668]
[1763059123058,0.61245413,98501.0,98500.0,2.11924668]
[1763059124148,0.60845413,98501.0,98500.0,2.11924668]
[1763059124351,0.61345413,98501.0,98500.0,2.11924668]
[1763059124754,0.60889413,98501.0,98500.0,2.11924668]
[1763059124973,0.61289413,98501.0,98500.0,2.11924668]
[1763059125300,0.61289413,98501.0,98500.0,2.07224668]
[1763059127138,0.61289413,98501.0,98500.0,2.06002736]
[1763059127339,0.61289413,98501.0,98500.0,2.00503721]
[1763059128407,0.61289413,98501.0,98500.0,1.92254809]
[1763059130803,0.60389413,98501.0,98500.0,1.92254809]
[1763059132496,0.60737799,98501.0,98500.0,1.88454809]
[1763059132695,0.66922799,98501.0,98500.0,1.88454809]
[1763059134269,0.66522799,98501.0,98500.0,1.88454809]
[1763059134458,0.71830078,98501.0,98500.0,1.88454809]
[1763059134660,0.66922799,98501.0,98500.0,1.88454809]
[1763059134882,0.66522799,98501.0,98500.0,1.88454809]
[1763059135204,0.66822799,98501.0,98500.0,1.88454809]
[1763059136448,0.66522799,98501.0,98500.0,1.88454809]
[1763059136649,0.66722799,98501.0,98500.0,1.88454809]
[1763059136852,1.16522799,98501.0,98500.0,1.88454809]
[1763059137052,1.16522799,98501.0,98500.0,1.8723286]
[1763059137223,1.17022799,98501.0,98500.0,1.86010911]
[1763059137424,1.16522799,98501.0,98500.0,1.86010911]
[1763059137819,0.66922799,98501.0,98500.0,1.86010911]
[1763059138242,0.66922799,98501.0,98500.0,1.7776294]
[1763059138445,0.65592527,98501.0,98500.0,1.7776294]
[1763059139184,2.65592527,98501.0,98500.0,1.7776294]
[1763059139592,2.65192527,98501.0,98500.0,1.7776294]
[1763059139744,2.65192527,98501.0,98500.0,1.7016294]
[1763059139949,2.65492527,98501.0,98500.0,1.7016294]
[1763059140357,2.41832527,98501.0,98500.0,1.7016294]
[1763059140549,2.48913705,98501.0,98500.0,1.7016294]
[1763059140723,2.48613705,98501.0,98500.0,1.7016294]
[1763059140931,2.91532527,98501.0,98500.0,1.7016294]
[1763059141155,2.91932527,98501.0,98500.0,1.7016294]
[1763059141988,2.41932527,98501.0,98500.0,1.7016294]
[1763059142184,2.41932527,98501.0,98500.0,1.64664148]
[1763059143035,2.91932527,98501.0,98500.0,1.64664148]
[1763059143419,2.99013705,98501.0,98500.0,1.64664148]
[1763059143625,2.91932527,98501.0,98500.0,1.64664148]
[1763059144441,2.93777024,98501.0,98500.0,1.64664148]
[1763059145031,2.93777024,98501.0,98500.0,1.12621548]
[1763059145239,3.08798898,98501.0,98500.0,0.00266348]
[1763059145476,3.10832898,98501.0,98500.0,0.00266348]
[1763059145648,3.08798898,98501.0,98500.0,0.00266348]
[1763059145847,3.10432898,98501.0,98500.0,0.00266348]
[1763059146051,3.08898898,98501.0,98500.0,0.00266348]
[1763059146544,3.08398898,98501.0,98500.0,0.00266348]
[1763059146756,3.09098898,98501.0,98500.0,0.00266348]
[1763059146977,2.0,98494.0,98486.0,0.00369291]
[1763059147189,0.44045602,98487.0,98486.0,0.00369291]
[1763059147389,2.42687493,98487.0,98486.0,0.00369291]
[1763059147631,2.44281758,98487.0,98486.0,0.00369291]
[1763059147833,2.49584255,98487.0,98486.0,0.00369291]
[1763059148044,2.44281758,98487.0,98486.0,0.00369291]
[1763059148245,2.44281758,98487.0,98477.0,0.04909291]
[1763059148246,2.34229,98478.0,98477.0,0.04909291]
[1763059148458,2.39074493,98478.0,98477.0,0.04909291]
[1763059149611,2.39574493,98478.0,98477.0,0.04909291]
[1763059149814,2.39074493,98478.0,98477.0,0.04909291]
[1763059150213,2.39674493,98478.0,98477.0,0.04909291]
[1763059150488,2.39074493,98478.0,98477.0,0.04909291]
[1763059151071,2.39574493,98478.0,98477.0,0.04909291]
[1763059151898,2.89574493,98478.0,98477.0,0.04909291]
[1763059152126,2.89074493,98478.0,98477.0,0.04909291]
[1763059152397,2.89674493,98478.0,98477.0,0.04909291]
[1763059152632,3.04690628,98478.0,98477.0,0.04909291]
[1763059152837,3.04090628,98478.0,98477.0,0.04909291]
[1763059153047,2.99748754,98478.0,98477.0,0.04909291]
[1763059153249,2.89568754,98478.0,98477.0,0.04909291]
[1763059153660,2.89068754,98478.0,98477.0,0.04909291]
[1763059153859,1.94613754,98478.0,98477.0,0.04909291]
[1763059153999,1.94613754,98478.0,98477.0,0.03709291]
[1763059155196,1.61713754,98478.0,98477.0,0.03709291]
[1763059155600,1.94513754,98478.0,98477.0,0.03709291]
[1763059155849,1.94013754,98478.0,98477.0,0.03709291]
[1763059156054,1.94413754,98478.0,98477.0,0.03709291]
[1763059156378,1.94013754,98478.0,98477.0,0.03709291]
[1763059156790,1.92574996,98478.0,98477.0,0.03709291]
[1763059157168,1.61215056,98478.0,98477.0,0.03709291]
[1763059157370,1.5911406,98478.0,98477.0,0.03709291]
[1763059157699,1.9141406,98478.0,98477.0,0.03709291]
[1763059158581,1.9101406,98478.0,98477.0,0.03709291]
[1763059158860,1.93134824,98478.0,98477.0,0.03709291]
[1763059159091,1.93334824,98478.0,98477.0,0.03709291]
[1763059159777,1.93134824,98478.0,98477.0,0.03709291]
[1763059160190,1.93434824,98478.0,98477.0,0.03709291]
[1763059160400,1.93134824,98478.0,98477.0,0.03709291]
[1763059161657,1.9151406,98478.0,98477.0,0.03709291]
[1763059162042,1.9101406,98478.0,98477.0,0.03709291]
[1763059162311,1.5406906,98478.0,98477.0,0.02609291]
[1763059162534,1.5376906,98478.0,98477.0,0.02609291]
[1763059162780,1.8611806,98478.0,98477.0,0.02609291]
[1763059163005,1.8626906,98478.0,98477.0,0.02609291]
[1763059163246,1.55363197,98478.0,98477.0,0.02609291]
[1763059163472,1.53539197,98478.0,98477.0,0.02609291]
[1763059163721,1.53539197,98478.0,98477.0,0.12242291]
[1763059163946,0.03534197,98478.0,98477.0,0.12242291]
[1763059164173,0.0194006,98478.0,98477.0,0.12242291]
[1763059164413,0.0194006,98478.0,98477.0,0.0431082]
[1763059164640,0.5,98480.0,98478.0,0.04341874]
[1763059164877,0.50032943,98480.0,98478.0,0.13974874]
[1763059165099,0.01640524,98501.0,98489.0,0.06403]
[1763059165100,0.00046531,98501.0,98489.0,0.06403]
[1763059165325,0.5,98480.0,98479.0,0.09633]
[1763059165558,0.02,98490.0,98480.0,0.00999999]
[1763059165822,0.54839595,98540.0,98500.0,0.06403]
[1763059165823,0.00999999,98540.0,98500.0,0.06403]
[1763059166047,0.01,98520.0,98509.0,0.0993]
[1763059166274,0.02,98510.0,98509.0,0.03527]
[1763059166495,2.01911529,98540.0,98539.0,0.11176]
[1763059166965,0.20999999,98560.0,98539.0,0.11176]
[1763059166966,0.5,98559.0,98539.0,0.04773]
[1763059167199,2.0183594,98556.0,98548.0,0.06403]
[1763059167436,2.01835815,98555.0,98548.0,0.06403]
[1763059167674,0.2,98560.0,98532.0,0.04773]
[1763059167675,0.71911529,98540.0,98532.0,0.04773]